{"text_format":"1","workbook":"xlsx","n_sheets":3,"sheets":["Tableau de bord","Liste de matériel","Données"],"not_rendered":{"charts":0,"images":0,"macros":1,"external_links":0,"defined_names":13,"comments":0,"pivot_tables":1},"unopened":[],"bounds":{"document_bytes":16777216,"sheet_cells":100000,"rows_first":2000,"rows_last":500,"rows_between":2000,"halvings":0,"cell_chars":16384,"cell_head_chars":4096},"cells_cut":0,"cells_raw":0,"read":"whole","date_system":"1900"}

{"sheet":"Tableau de bord","index":0,"n_rows":20,"n_cols":6,"rows_kept":20,"cut":false,"hidden":false,"merged":[]}
[null,"Tableau de bord"]
[]
[]
[null,null,null,null,null,"Nombre total"]
[null,null,null,null,null,{"$f":"GETPIVOTDATA(\"Total\",Données!$B$11)","v":3}]
[]
[null,null,null,null,null,"Coût total mensuel"]
[null,null,null,null,null,{"$f":"GETPIVOTDATA(\"Coût mensuel total\",Données!$B$11)","v":1765.5943035068672}]
[]
[null,null,null,null,null,"Coûts de fonctionnement"]
[null,null,null,null,null,{"$f":"GETPIVOTDATA(\"Coûts de fonctionnement\",Données!$B$11)","v":605}]
[]
[null,null,null,null,null,"Dépréciation mensuelle"]
[null,null,null,null,null,{"$f":"GETPIVOTDATA(\"Dépréciation mensuelle\",Données!$B$11)","v":659.72222222222217}]
[]
[null,null,null,null,null,"Montant des remboursements"]
[null,null,null,null,null,{"$f":"GETPIVOTDATA(\"Montant du paiement\",Données!$B$11)","v":1160.5943035068672}]
[]
[null,null,null,null,null,"Valeur actuelle"]
[null,null,null,null,null,{"$f":"GETPIVOTDATA(\"Valeur active\",Données!$B$11)","v":37554.337899543381}]

{"sheet":"Liste de matériel","index":1,"n_rows":9,"n_cols":20,"rows_kept":9,"cut":false,"hidden":false,"merged":[]}
[null,"Liste de matériel"]
[]
[null,null,null,"Surligner lorsque le remboursements mensuels restants sont inférieurs à : ",20]
[]
[null,"Numéro de contrôle\nou de série1","Description de l’élément\n(Marque et modèle)","Lieu","Condition","Fournisseur","Années de service\nrestantes ","Valeur initiale","Acompte","Date d’achat\nou de location","Conditions de prêt\n(Années)","Taux d’emprunt","Coûts de fonctionnement\nmensuels","Valeur prévue en fin de contrat","Remboursements\nmensuels restants","Remboursement mensuel","Coût total\nmensuel","Dépréciation annuelle\n(constante)","Dépréciation mensuelle\n(constante)","Valeur actuelle"]
[null,123,"Marque Modèle 1","Filiale principale","Bon","Local",5,30000,5000,"2011-01-15",4,0.1,200,20000,{"$f":"IFERROR(SUMPRODUCT(--(DAY(ROW(OFFSET($A$1,,,DATE(YEAR(Équipement[[#This Row],[Date d’achat\nou de location]])+Équipement[[#This Row],[Conditions de prêt\n(Années)]],MONTH(Équipement[[#This Row],[Date d’achat\nou de location]])-1,DAY(Équipement[[#This Row],[Date d’achat\nou de location]]))-TODAY()))+DATE(YEAR(Équipement[[#This Row],[Date d’achat\nou de location]])+Équipement[[#This Row],[Conditions de prêt\n(Années)]],MONTH(Équipement[[#This Row],[Date d’achat\nou de location]]),DAY(Équipement[[#This Row],[Date d’achat\nou de location]]))-1)=DAY(Équipement[[#This Row],[Date d’achat\nou de location]]))),0)","v":25},{"$f":"IFERROR(-(Équipement[Valeur initiale]>0)*(Équipement[Valeur initiale]<>Équipement[Acompte])*PMT(Équipement[Taux d’emprunt]/MoisParAn,Équipement[Conditions de prêt\n(Années)]*MoisParAn,Équipement[Valeur initiale]-Équipement[Acompte]),0)","v":634.06458586867973},{"$f":"Équipement[[#This Row],[Remboursement mensuel]]+Équipement[Coûts de fonctionnement\nmensuels]","v":834.06458586867973},{"$f":"IFERROR((Équipement[Valeur initiale]>0)*SLN(Équipement[Valeur initiale],Équipement[Valeur prévue en fin de contrat],Équipement[Conditions de prêt\n(Années)]),0)","v":2500},{"$f":"IFERROR(Équipement[Dépréciation annuelle\n(constante)]/MoisParAn,0)","v":208.33333333333334},{"$f":"IFERROR(Équipement[Valeur initiale]-(Équipement[Dépréciation annuelle\n(constante)]*((TODAY()-Équipement[Date d’achat\nou de location])/JoursParAn)),0)","v":25369.863013698632}]
[null,234,"Marque Modèle 2","Filiale principale","Bon","Local",4,12500,1500,"2011-03-10",3,7.7499999999999999E-2,120,3000,{"$f":"IFERROR(SUMPRODUCT(--(DAY(ROW(OFFSET($A$1,,,DATE(YEAR(Équipement[[#This Row],[Date d’achat\nou de location]])+Équipement[[#This Row],[Conditions de prêt\n(Années)]],MONTH(Équipement[[#This Row],[Date d’achat\nou de location]])-1,DAY(Équipement[[#This Row],[Date d’achat\nou de location]]))-TODAY()))+DATE(YEAR(Équipement[[#This Row],[Date d’achat\nou de location]])+Équipement[[#This Row],[Conditions de prêt\n(Années)]],MONTH(Équipement[[#This Row],[Date d’achat\nou de location]]),DAY(Équipement[[#This Row],[Date d’achat\nou de location]]))-1)=DAY(Équipement[[#This Row],[Date d’achat\nou de location]]))),0)","v":15},{"$f":"IFERROR(-(Équipement[Valeur initiale]>0)*(Équipement[Valeur initiale]<>Équipement[Acompte])*PMT(Équipement[Taux d’emprunt]/MoisParAn,Équipement[Conditions de prêt\n(Années)]*MoisParAn,Équipement[Valeur initiale]-Équipement[Acompte]),0)","v":343.43280007691891},{"$f":"Équipement[[#This Row],[Remboursement mensuel]]+Équipement[Coûts de fonctionnement\nmensuels]","v":463.43280007691891},{"$f":"IFERROR((Équipement[Valeur initiale]>0)*SLN(Équipement[Valeur initiale],Équipement[Valeur prévue en fin de contrat],Équipement[Conditions de prêt\n(Années)]),0)","v":3166.6666666666665},{"$f":"IFERROR(Équipement[Dépréciation annuelle\n(constante)]/MoisParAn,0)","v":263.88888888888886},{"$f":"IFERROR(Équipement[Valeur initiale]-(Équipement[Dépréciation annuelle\n(constante)]*((TODAY()-Équipement[Date d’achat\nou de location])/JoursParAn)),0)","v":7103.6529680365293}]
[null,345,"Marque Modèle 2","Filiale 1","Passable","Autre",1,10000,2500,"2010-09-15",4,0.08,285,1000,{"$f":"IFERROR(SUMPRODUCT(--(DAY(ROW(OFFSET($A$1,,,DATE(YEAR(Équipement[[#This Row],[Date d’achat\nou de location]])+Équipement[[#This Row],[Conditions de prêt\n(Années)]],MONTH(Équipement[[#This Row],[Date d’achat\nou de location]])-1,DAY(Équipement[[#This Row],[Date d’achat\nou de location]]))-TODAY()))+DATE(YEAR(Équipement[[#This Row],[Date d’achat\nou de location]])+Équipement[[#This Row],[Conditions de prêt\n(Années)]],MONTH(Équipement[[#This Row],[Date d’achat\nou de location]]),DAY(Équipement[[#This Row],[Date d’achat\nou de location]]))-1)=DAY(Équipement[[#This Row],[Date d’achat\nou de location]]))),0)","v":21},{"$f":"IFERROR(-(Équipement[Valeur initiale]>0)*(Équipement[Valeur initiale]<>Équipement[Acompte])*PMT(Équipement[Taux d’emprunt]/MoisParAn,Équipement[Conditions de prêt\n(Années)]*MoisParAn,Équipement[Valeur initiale]-Équipement[Acompte]),0)","v":183.09691756126861},{"$f":"Équipement[[#This Row],[Remboursement mensuel]]+Équipement[Coûts de fonctionnement\nmensuels]","v":468.09691756126858},{"$f":"IFERROR((Équipement[Valeur initiale]>0)*SLN(Équipement[Valeur initiale],Équipement[Valeur prévue en fin de contrat],Équipement[Conditions de prêt\n(Années)]),0)","v":2250},{"$f":"IFERROR(Équipement[Dépréciation annuelle\n(constante)]/MoisParAn,0)","v":187.5},{"$f":"IFERROR(Équipement[Valeur initiale]-(Équipement[Dépréciation annuelle\n(constante)]*((TODAY()-Équipement[Date d’achat\nou de location])/JoursParAn)),0)","v":5080.821917808219}]
[null,"Total",null,null,null,null,{"$f":"SUBTOTAL(101,Équipement[Années de service\nrestantes ])","v":3.3333333333333335},{"$f":"SUBTOTAL(109,Équipement[Valeur initiale])","v":52500},{"$f":"SUBTOTAL(109,Équipement[Acompte])","v":9000},null,{"$f":"SUBTOTAL(101,Équipement[Conditions de prêt\n(Années)])","v":3.6666666666666665},{"$f":"SUBTOTAL(101,Équipement[Taux d’emprunt])","v":8.5833333333333331E-2},{"$f":"SUBTOTAL(109,Équipement[Coûts de fonctionnement\nmensuels])","v":605},{"$f":"SUBTOTAL(109,Équipement[Valeur prévue en fin de contrat])","v":24000},{"$f":"SUBTOTAL(101,Équipement[Remboursements\nmensuels restants])","v":20.333333333333332},{"$f":"SUBTOTAL(109,Équipement[Remboursement mensuel])","v":1160.5943035068672},{"$f":"SUBTOTAL(109,Équipement[Coût total\nmensuel])","v":1765.5943035068672},{"$f":"SUBTOTAL(101,Équipement[Dépréciation annuelle\n(constante)])","v":2638.8888888888887},{"$f":"SUBTOTAL(101,Équipement[Dépréciation mensuelle\n(constante)])","v":219.90740740740739},{"$f":"SUBTOTAL(109,Équipement[Valeur actuelle])","v":37554.337899543381}]

{"sheet":"Données","index":2,"n_rows":15,"n_cols":8,"rows_kept":15,"cut":false,"hidden":true,"merged":[]}
[null,"Données"]
[null,"Cette feuille doit rester masquée. La modification de la structure du tableau croisé dynamique de cette feuille pourrait entraîner des erreurs dans les segments de tableau de bord."]
[]
[null,"Description de l’élément\n(Marque et modèle)","(Tous)"]
[null,"Lieu","(Tous)"]
[null,"Condition","(Tous)"]
[null,"Fournisseur","(Tous)"]
[null,"Années de service\nrestantes ","(Tous)"]
[null,"Conditions de prêt\n(Années)","(Tous)"]
[]
[null,"Étiquettes de lignes","Total","Coûts de fonctionnement","Montant du paiement","Coût mensuel total","Dépréciation mensuelle","Valeur active"]
[null,123,1,200,634.06458586867973,834.06458586867973,208.33333333333334,25369.863013698632]
[null,234,1,120,343.43280007691891,463.43280007691891,263.88888888888886,7103.6529680365293]
[null,345,1,285,183.09691756126861,468.09691756126858,187.5,5080.821917808219]
[null,"Total général",3,605,1160.5943035068672,1765.5943035068672,659.72222222222217,37554.337899543381]